Cogmind - Beta 14 @@@ ROGUE MODE // 2024.08.18 @ 08:34:47 Player: Lillith Result: Destroyed by B-75 Beast with Heavy Plasma Cannon Performance ------------- Evolutions (2) 1000 Regions Visited (6) 1200 Robots Destroyed (133) 665 Value Destroyed (3510) 3510 Prototype IDs (3) 60 Alien Tech Used (0) 0 Bonus (710) 710 TOTAL SCORE: 7145 Bonus ------- High Alert Combat Kills 293 Follower Combat Kills 242 Entered Garrisons 200 Friendly Fire -25 Cogmind --------- Core Integrity 0/550 Matter 258/300 Energy 142/160 System Corruption 9% Temperature Cool (12) Movement Treading (160) Location -8/Garrison Parts ------- > --- POWER (1) -------- Light Nuclear Core > --- PROPULSION (4) --- Light Treads Light Treads Light Treads Light Treads > --- UTILITY (4) ------ Heat Sink Improved Heat Sink High-capacity Storage Unit Light Armor Plating > --- WEAPON (2) ------- Advanced Beam Rifle Improved Assault Rifle > --- INVENTORY (20) --- Light Ion Engine Light Treads Cesium-ion Thruster Compact Battery (200) Structural Scanner Hacking Suite Small Laser Light Assault Rifle Light Assault Rifle Improved Assault Rifle High-powered Shotgun High-powered Shotgun High-powered Shotgun Assault Cannon Great Maul Segregator Blade Trap Blade Trap Peak State ------------ > --- POWER ------------ Light Angular Momentum Engine > --- PROPULSION ------- Advanced Treads Advanced Treads Wheel Compact Wheel > --- UTILITY ---------- High-capacity Storage Unit Structural Scanner Improved Light Armor Plating Hacking Suite > --- WEAPON ----------- Advanced Beam Rifle Advanced Beam Rifle > --- INVENTORY -------- Light Nuclear Core Carbon-fiber Leg Improved Heat Sink Compact Matter Pod Light Armor Plating Improved Light Armor Plating Hacking Suite Small Laser Light Assault Rifle Improved Assault Rifle Improved Assault Rifle High-powered Shotgun High-powered Shotgun High-powered Shotgun Assault Cannon Shock Bomb Launcher Improved Grenade Launcher Great Maul Blade Trap Blade Trap [Rating: 34] Favorites ----------- Power Light Nuclear Core Engine Light Ion Engine Power Core Light Nuclear Core Propulsion Wheel Treads Light Treads Leg Aluminum Leg Wheel Wheel Flight Unit Cesium-ion Thruster Utility Large Storage Unit Device Seismic Detector Storage Large Storage Unit Hackware Hacking Suite Protection Light Armor Plating Weapon Assault Rifle Energy Gun Medium Laser Ballistic Gun Assault Rifle Ballistic Cannon Assault Cannon Launcher Improved Grenade Launcher Impact Weapon Great Maul Slashing Weapon Segregator Build | -11 -10 -10 -9 -9 -8 -8 ------- Run | Yrd Mat Min Mat Min Mat Gar Slots Evolved 4 | . . . 2 . 2 . Power . | . . . . . . . Propulsion 2 | . . . 1 . 1 . Utility 2 | . . . 1 . 1 . Weapon . | . . . . . . . Parts Attached 160 | 7 12 9 27 31 26 48 Power 16 | 1 1 1 1 5 3 4 Engine 11 | 1 1 . 1 4 1 3 Core 5 | . . 1 . 1 2 1 Reactor . | . . . . . . . Propulsion 41 | 2 4 2 4 8 9 12 Treads 15 | 1 2 1 3 . 3 5 Leg 4 | . . . . . 2 2 Wheel 16 | 1 2 1 1 7 4 . Hover . | . . . . . . . Flight 6 | . . . . 1 . 5 Utility 28 | 2 1 1 6 4 3 11 Device 8 | 1 . . 1 3 . 3 Storage 4 | 1 1 . . 1 . 1 Processor . | . . . . . . . Hackware 2 | . . . 1 . 1 . Protection 14 | . . 1 4 . 2 7 Artifact . | . . . . . . . Weapon 75 | 2 6 5 16 14 11 21 Energy Gun 16 | 1 2 1 7 1 2 2 Energy Cannon . | . . . . . . . Ballistic Gun 30 | 1 2 3 5 7 5 7 Ballistic Cannon 4 | . . . . . 2 2 Launcher 16 | . 2 1 3 4 1 5 Special Weapon . | . . . . . . . Impact Weapon 8 | . . . 1 2 1 4 Slashing Weapon 1 | . . . . . . 1 Piercing Weapon . | . . . . . . . Special Melee Weapon . | . . . . . . . Unidentified Prototypes 3 | . . . 1 . 2 . Parts Lost 44 | . . 1 7 13 7 16 Power 5 | . . . 1 1 1 2 Propulsion 17 | . . 1 2 3 5 6 Utility 9 | . . . 1 2 1 5 Weapon 13 | . . . 3 7 . 3 Highest Loss Streak 8 | . . 1 5 8 3 7 To Critical Strikes . | . . . . . . . Average Slot Usage (%) 88 | . 99 100 96 78 93 74 Engine 6 | . 13 2 5 7 5 4 Core 2 | . . 11 4 . 3 2 Treads 11 | . 14 14 22 1 8 7 Leg 1 | . . . . . 4 4 Wheel 10 | . 13 14 10 22 17 . Flight 4 | . . . . 1 . 13 Device 9 | . 14 11 2 13 9 7 Storage 10 | . 14 14 11 11 9 9 Hackware 3 | . . . 8 3 8 . Protection 6 | . . 2 10 . 8 10 Energy Gun 6 | . 13 14 7 . 3 2 Ballistic Gun 10 | . 13 14 13 9 11 4 Launcher 1 | . . . . 1 . 2 Impact Weapon 2 | . . . . 6 . 5 Peak Build Rating 34 | 7 9 13 18 19 34 28 Average Rating 16 | 5 8 11 16 11 25 20 On Entrance 11 | . 7 9 13 15 12 26 Naked Turns . | . . . . . . . Heaviest Build 61 | 15 30 34 37 52 61 59 Greatest Support 80 | 20 20 20 43 36 44 80 Greatest Overweight (x) 19 | . 2 3 3 8 19 15 Average Overweight (x) 1 | . 1 2 . 1 1 3 Largest Inventory Capacity 20 | 8 15 15 15 20 20 20 Average Capacity 17 | 7 13 15 15 16 20 20 Most Carried 20 | 4 15 15 15 15 20 20 Average Carried 14 | 3 11 14 14 11 18 17 Final Capacity 20 | 8 15 15 15 20 20 20 Final Carried 18 | 4 15 15 13 15 18 18 Class Distribution -------------------- 52% | Scavenger-Mutant 47% | Mutant Dominant Class ---------------- Mutant | -10/Materials Mutant | -10/Mines Scavenger-Mutant | -9/Materials Scavenger-Mutant | -9/Mines Scavenger-Mutant | -8/Materials Scavenger-Mutant | -8/Garrison Resources | -11 -10 -10 -9 -9 -8 -8 ----------- Run | Yrd Mat Min Mat Min Mat Gar Matter Collected 3711 | 284 301 93 545 676 874 938 Remotely . | . . . . . . . Salvage Created 3972 | 112 505 125 1040 602 876 712 Parts 256 | 6 44 16 58 32 60 40 Haulers Intercepted 4 | . 2 . 1 . 1 . Recyclers Shooed 4 | 1 . . 2 1 . . Parts Field Recycled . | . . . . . . . Retrieved Matter . | . . . . . . . Parts Self-Destructed . | . . . . . . . Prevented . | . . . . . . . Kills | -11 -10 -10 -9 -9 -8 -8 ------- Run | Yrd Mat Min Mat Min Mat Gar Combat Hostiles Destroyed 100 | . 10 5 24 20 19 22 Melee 4 | . . . . 1 . 3 Guns 52 | . 4 2 14 6 13 13 Cannons 5 | . . . . . 4 1 AOE 38 | . 6 3 10 12 2 5 Classes Destroyed 14 | 2 7 . 2 2 . 1 Worker 12 | . 6 1 . 2 3 . Builder 5 | . 1 . 2 1 1 . Tunneler 3 | 2 . 1 . . . . Hauler 4 | . 2 . 1 . 1 . Recycler 10 | 1 1 . 2 6 . . Operator 4 | . 1 . 2 . 1 . Watcher 2 | . 1 . 1 . . . Swarmer 33 | . 6 3 4 9 3 8 Saboteur 3 | . . . . . . 3 Grunt 38 | . 4 2 13 1 12 6 Duelist 4 | . . . 2 1 1 . Sentry 13 | . . . 5 . 3 5 Demolisher 2 | . . . . 2 . . Assembled 7 | . . . . 7 . . Best Kill Streak 7 | 3 4 6 7 6 5 5 Combat Bots Only 6 | . 3 4 5 6 5 5 Max Kills in Single Turn 4 | 1 4 2 3 3 1 2 Gunslinging 1 | . . . 1 . . . Exploded 3 | . 3 2 3 3 1 2 Melee 1 | . . . . 1 . 1 Uniques/NPCs Destroyed . | . . . . . . . Combat | -11 -10 -10 -9 -9 -8 -8 -------- Run | Yrd Mat Min Mat Min Mat Gar Hostile Shots Fired 479 | . 30 22 112 54 105 156 Missed 141 | . 9 8 35 16 33 40 Damage Taken 5868 | . 227 177 1027 1122 1069 2246 Core 1049 | . 52 45 103 280 158 411 Absorbed by Shields . | . . . . . . . Redirected to Shielding 53 | . . . . . . 53 Core Remaining (%) 55 | 100 . 61 . 4 . . Volleys Fired 319 | 8 45 11 66 46 83 60 Largest 2 | 2 2 2 2 2 2 2 Hottest 122 | 70 70 88 88 68 122 105 Shots Fired 520 | 16 85 20 104 61 132 102 Gun 433 | 16 80 18 94 47 97 81 Cannon 33 | . . . . . 29 4 Launcher 54 | . 5 2 10 14 6 17 Special . | . . . . . . . Kinetic 352 | 8 40 9 74 43 117 61 Thermal 97 | 8 40 9 7 . 9 24 Explosive 47 | . 5 2 10 14 . 16 Electromagnetic 24 | . . . 13 4 6 1 Robot Hit Streak 17 | 4 11 7 17 8 14 9 Robot Miss Streak 5 | 2 4 1 3 4 5 5 Penetration Max . | . . . . . . . Secondary Targets 6 | . 1 . 1 . 1 3 Max Gunslinging Chain 1 | . 1 . 1 . 1 1 Shots Hit Robots 357 | 10 55 13 80 40 96 63 Core Hits 238 | 4 31 10 56 35 50 52 Critical Kills 3 | . . . 1 1 1 . Critical Parts Destroyed 3 | . 1 . . 2 . . Critical Strikes 9 | . 1 . 1 3 1 3 Burn 3 | . . . . . . 3 Destroy 4 | . 1 . 1 1 1 . Smash 2 | . . . . 2 . . Melee Attacks 19 | . . . 1 14 . 4 Impact 19 | . . . 1 14 . 4 Slashing . | . . . . . . . Piercing . | . . . . . . . Sneak Attacks 7 | . . . . 7 . . Combat Hostiles . | . . . . . . . Follow-up Attacks . | . . . . . . . Damage Inflicted 10437 | 123 1218 330 2459 1794 1940 2573 Guns 4708 | 123 725 193 1263 316 1241 847 Cannons 541 | . . . . . 465 76 Explosions 4334 | . 493 137 1194 633 227 1650 Melee 845 | . . . . 845 . . Ramming 9 | . . . 2 . 7 . Kinetic 3960 | 60 375 91 1009 272 1566 587 Thermal 1186 | 63 350 102 152 43 140 336 Explosive 4031 | . 493 137 1161 590 . 1650 Electromagnetic 406 | . . . 135 44 227 . Impact 845 | . . . . 845 . . Slashing . | . . . . . . . Piercing . | . . . . . . . Highest Corruption 12 | . . . . 12 . 9 Average Corruption 9 | . . . . 11 . 9 Corruption Purged . | . . . . . . . Corruption Blocked . | . . . . . . . Effects 100 | . . . . 27 . 73 Message Errors 25 | . . . . 9 . 16 Matter Fused 23 | . . . . 5 . 18 Heat Flow Errors 11 | . . . . 2 . 9 Energy Discharges 10 | . . . . 2 . 8 Parts Fused 2 | . . . . 1 . 1 Data Loss (minor) 14 | . . . . 2 . 12 Data Loss (major) 3 | . . . . 1 . 2 Misfires 7 | . . . . 2 . 5 Alerts 3 | . . . . 2 . 1 Misdirections 1 | . . . . 1 . . Weapon Failures 1 | . . . . . . 1 Overload Shots . | . . . . . . . Overflow Damage 445 | . 52 . 44 298 15 36 Projectiles 15 | . . . . . 15 . Explosions 154 | . 52 . 44 22 . 36 Melee 276 | . . . . 276 . . Knockbacks 14 | . . . . 5 8 1 Impact 5 | . . . . 5 . . Kinetic 9 | . . . . . 8 1 Secondary . | . . . . . . . Self-Inflicted Damage 363 | . . . 30 131 12 190 Shots 11 | . . . 1 6 1 3 Rammed 2 | . . . 1 . 1 . Targets Rammed 2 | . . . 1 . 1 . Kicked . | . . . . . . . Crushed . | . . . . . . . Highest Temperature 321 | 36 150 99 150 207 172 321 Average Temperature 53 | 14 37 26 39 79 42 115 Received Heat Transfer 2046 | . 99 63 489 . 657 738 Effects 1 | . . . . . . 1 Interference 1 | . . . . . . 1 Siege Activations . | . . . . . . . Robots Corrupted 3 | . . . . 3 . . Combat Hostiles 1 | . . . . 1 . . Parts Fried 4 | . . . 1 3 . . Impact Corruptions 10 | . . . . 10 . . Robots Melted . | . . . . . . . Combat Hostiles . | . . . . . . . Parts Melted 5 | . 1 . . . . 4 Heat Transferred 2875 | 185 999 259 309 50 259 814 Parts Sabotaged 10 | . . . . . . 10 Parts Stolen . | . . . . . . . Parts Stripped . | . . . . . . . Power Chain Reactions 1 | . . . 1 . . . Alert | -11 -10 -10 -9 -9 -8 -8 ------- Run | Yrd Mat Min Mat Min Mat Gar Peak Influence 1170 | 15 230 250 590 223 293 1170 Initial 179 | . 9 37 34 102 57 179 Average 346 | 5 84 106 326 107 201 773 Maximum Alert Level 4 | . 1 1 2 1 1 4 Low Security (%) 45 | 100 97 82 11 92 49 1 Level 1 22 | . 2 17 64 7 50 4 Level 2 10 | . . . 23 . . 20 Level 3 19 | . . . . . . 68 Level 4 1 | . . . . . . 5 Level 5 . | . . . . . . . High Security . | . . . . . . . Max Security . | . . . . . . . Squads Dispatched 9 | . 3 . 5 . 1 . Investigation 6 | . 2 . 4 . . . Extermination . | . . . . . . . Reinforcement 3 | . 1 . 1 . 1 . Assault . | . . . . . . . Garrison . | . . . . . . . Intercept . | . . . . . . . Searches Triggered . | . . . . . . . Construction Impeded . | . . . . . . . Haulers Reinforced . | . . . . . . . Active Scanning Responses . | . . . . . . . Cargo Convoy Interrupts . | . . . . . . . Stealth | -11 -10 -10 -9 -9 -8 -8 --------- Run | Yrd Mat Min Mat Min Mat Gar Distress Signals 5 | . 2 . 2 . 1 . Communications Jammed . | . . . . . . . Distress Signals . | . . . . . . . Times Spotted 146 | . 21 9 40 18 26 32 Peak Tracking Total 7 | . 4 4 7 4 5 5 Tactical Retreats 10 | . . . 2 . 3 5 Traps | -11 -10 -10 -9 -9 -8 -8 ------- Run | Yrd Mat Min Mat Min Mat Gar Traps Triggered 6 | . 3 . 2 . . 1 Indirectly . | . . . . . . . Trap Hack Attempts . | . . . . . . . Triggered . | . . . . . . . Disarmed . | . . . . . . . Reprogrammed . | . . . . . . . Reused . | . . . . . . . Traps Extracted . | . . . . . . . Installed . | . . . . . . . Triggered . | . . . . . . . Most Traps Carried 2 | . . 2 2 2 2 2 Machines | -11 -10 -10 -9 -9 -8 -8 ---------- Run | Yrd Mat Min Mat Min Mat Gar Machines Disabled 10 | . . . 2 2 . 6 Max in Single Turn 2 | . . . 1 1 . 2 Garrison Relay 1 | . . . . . . 1 Phase Generator 1 | . . . . . . 1 Machines Repaired . | . . . . . . . Machines Dismantled . | . . . . . . . Machines Sabotaged . | . . . . . . . Overloaded Fab Kills . | . . . . . . . Hacking | -11 -10 -10 -9 -9 -8 -8 --------- Run | Yrd Mat Min Mat Min Mat Gar Machines Accessed 21 | . 5 . 10 . 4 2 Terminals 18 | . 4 . 9 . 3 2 Fabricators . | . . . . . . . Repair Stations . | . . . . . . . Recycling Units 2 | . 1 . 1 . . . Scanalyzers . | . . . . . . . Garrison Access 1 | . . . . . 1 . Total Hacks 70 | . 23 . 32 . 11 4 Successful 40 | . 14 . 16 . 9 1 Failed 29 | . 9 . 15 . 2 3 Catastrophic 4 | . 2 . 1 . . 1 Database Lockouts 1 | . . . 1 . . . Manual 59 | . 22 . 28 . 9 . Terminals 67 | . 22 . 31 . 10 4 Fabricators . | . . . . . . . Repair Stations . | . . . . . . . Recycling Units 2 | . 1 . 1 . . . Scanalyzers . | . . . . . . . Garrison Access 1 | . . . . . 1 . Terminal Hacks 13 | . 6 . 5 . 1 1 Robot Analysis 7 | . 4 . 2 . 1 . Branch Access Points 2 | . 1 . 1 . . . Unreport Threat 2 | . . . 2 . . . Recall Reinforcements 1 | . 1 . . . . . Security Stations 1 | . . . . . . 1 Fabricator Hacks . | . . . . . . . Repair Station Hacks . | . . . . . . . Recycling Unit Hacks . | . . . . . . . Scanalyzer . | . . . . . . . Garrison Access Hacks 1 | . . . . . 1 . Unlock Access 1 | . . . . . 1 . Unauthorized Hacks 25 | . 8 . 11 . 6 . Terminals 23 | . 7 . 10 . 6 . Assimilate 1 | . . . 1 . . . Botnet 6 | . 2 . 2 . 2 . Operators 2 | . 1 . . . 1 . Skim 14 | . 4 . 7 . 3 . Fabricators . | . . . . . . . Repair Stations . | . . . . . . . Recycling Units 2 | . 1 . 1 . . . Tunnel 2 | . 1 . 1 . . . Scanalyzers . | . . . . . . . Garrison Access . | . . . . . . . Data Cores Recovered 1 | . . . 1 . . . Used . | . . . . . . . Hacking Detections 18 | . 4 . 9 . 3 2 Full Trace Events 1 | . . . 1 . . . Feedback Events . | . . . . . . . Feedback Blocked . | . . . . . . . Robot Schematics Acquired . | . . . . . . . Robots Built . | . . . . . . . Authchips . | . . . . . . . Time . | . . . . . . . Total Robot Build Rating . | . . . . . . . Part Schematics Acquired . | . . . . . . . Parts Built . | . . . . . . . Authchips . | . . . . . . . Time . | . . . . . . . Total Part Build Rating . | . . . . . . . Parts Repaired . | . . . . . . . Time . | . . . . . . . Parts Recycled . | . . . . . . . Recycled Matter . | . . . . . . . Retrieved Matter . | . . . . . . . Retrieved Components . | . . . . . . . Parts Scanalyzed . | . . . . . . . Part Schematics Acquired . | . . . . . . . Parts Damaged . | . . . . . . . Bothacking | -11 -10 -10 -9 -9 -8 -8 ------------ Run | Yrd Mat Min Mat Min Mat Gar Used RIF Installer . | . . . . . . . Robots Hacked . | . . . . . . . Non-combat . | . . . . . . . Combat . | . . . . . . . Robot Hacks Applied . | . . . . . . . Relay Couplers Released 5 | . . . . . . 5 Machine Destruction 5 | . . . . . . 5 Fabnet Peak Effective % . | . . . . . . . Robots Rewired . | . . . . . . . Allies Hacked . | . . . . . . . Hacks Repelled . | . . . . . . . Allies | -11 -10 -10 -9 -9 -8 -8 -------- Run | Yrd Mat Min Mat Min Mat Gar Total Allies 3 | . . 3 . . . . Largest Group 3 | . . 3 2 . . . Highest-Rated Group 40 | . . 40 32 . . . Highest-Rated Ally 16 | . . 16 16 . . . Total Orders . | . . . . . . . Ally Attacks 53 | . . 17 36 . . . Total Damage 596 | . . 203 393 . . . Kills 10 | . . 4 6 . . . Allies Corrupted . | . . . . . . . Allies Melted . | . . . . . . . Intel | -11 -10 -10 -9 -9 -8 -8 ------- Run | Yrd Mat Min Mat Min Mat Gar Robot Analysis Total 7 | . 4 . 2 . 1 . Derelict Logs Recovered 2 | . . 1 . 1 . . Drone Launches . | . . . . . . . Drone Recoveries . | . . . . . . . Exploration | -11 -10 -10 -9 -9 -8 -8 ------------- Run | Yrd Mat Min Mat Min Mat Gar Turns Passed 7665 | 130 1392 576 1404 958 986 2219 Spaces Moved 3552 | 60 658 408 785 632 465 544 Core 57 | 2 . . . 30 1 24 Treads 1383 | 57 394 47 514 . 107 264 Legs 245 | . . . . . 39 206 Wheels 1803 | 1 264 361 271 588 318 . Hover . | . . . . . . . Flight 64 | . . . . 14 . 50 Fastest Speed 50 | 50 110 110 120 86 95 160 Average Speed 177 | 155 174 129 146 119 141 362 Slowest Speed 1090 | 160 240 240 240 520 1000 1090 Overloaded Moves . | . . . . . . . Propulsion Burnouts . | . . . . . . . Robots Hopped . | . . . . . . . Cave-ins Triggered 1 | . . . . . . 1 Exploration Rate (%) 62 | 4 88 79 80 90 43 50 Regions Visited 6 Branch Regions 2 Pre-discovered Areas 5 | . 1 . 4 . . . Known Exits Taken 4 | . 1 . 1 1 1 . Unknown Exits Taken 2 | 1 . 1 . . . . Scrap Searched 3 | . . 1 . 2 . . Spaces Dug 14 | . . . 1 9 . 4 Terrain Destroyed 403 | . 27 19 70 141 6 140 Melee 1 | . . . 1 . . . Projectile 6 | . . . . . 6 . AOE 396 | . 27 19 69 141 . 140 Terrain Rammed . | . . . . . . . Walls Destroyed . | . . . . . . . Machines Disabled . | . . . . . . . Actions | -11 -10 -10 -9 -9 -8 -8 --------- Run | Yrd Mat Min Mat Min Mat Gar Total 4343 | 78 817 442 928 746 660 672 Wait 164 | . 86 . 25 5 46 2 Move 3547 | 59 657 407 784 631 465 544 Hop . | . . . . . . . Pick Up 62 | 4 13 5 7 10 16 7 Fast Attach 57 | 7 6 1 6 8 7 22 Attach 37 | . . 2 6 11 8 10 Detach 14 | . . 1 2 3 4 4 Swap 67 | . 6 6 16 12 11 16 Drop 55 | . 4 9 14 6 19 3 Fire 319 | 8 45 11 66 46 83 60 Melee 19 | . . . 1 14 . 4 Ram 2 | . . . 1 . 1 . Kick . | . . . . . . . Crush . | . . . . . . . Escape Stasis . | . . . . . . . Rewire . | . . . . . . . Trap . | . . . . . . . Miscellaneous . | . . . . . . . Route ------- -11/Scrapyard -10/Materials (discovered 4 exits: *Mat x3 / *Min) -10/Mines -9/Materials (discovered 5 exits: *Mat x3 / *Min x2) -9/Mines (discovered 2 exits: *Mat x2) -8/Materials (discovered 3 exits: Fac / *Sto / Gar) -8/Garrison (discovered 1 exit: [*Mat]) History --------- Turn | Location | Event 15 | -11/Scrapyard | Discovered new exit (range 15) 131 | -11/Scrapyard | Entered Materials 317 | -10/Materials | Build established: Mutant 715 | -10/Materials | Discovered new exit (range 12) 960 | -10/Materials | Discovered new exit (range 15) 1211 | -10/Materials | Discovered new exit (range 7) 1498 | -10/Materials | Identified exit to Mines 1523 | -10/Materials | Entered Mines 1525 | -10/Mines | Learned Materials terminal intel 1527 | -10/Mines | Assisted by bots powering up and referring to "LRC-V3" 1705 | -10/Mines | Found a hidden stash of uninstalled traps 1889 | -10/Mines | Discovered new exit (range 9) 2099 | -10/Mines | Entered Materials 2099 | -9/Materials | Accompanied by 2 allies 2099 | -9/Materials | Evolved 2 slots: Propulsion x1, Utility x1 2100 | -9/Materials | Loaded intel: 12 terminal locations 2272 | -9/Materials | Build established: Scavenger-Mutant 2556 | -9/Materials | Discovered new exit (range 15) 2860 | -9/Materials | Discovered new exit (range 5) 3160 | -9/Materials | Learned Recycling recycling unit intel 3186 | -9/Materials | Learned 2 Materials zone layouts 3204 | -9/Materials | Learned location of Zion (-6) 3212 | -9/Materials | Learned Storage security intel 3213 | -9/Materials | Learned location of Mines (-8) 3276 | -9/Materials | Identified exit to Materials 3303 | -9/Materials | Lost 5 parts (1p2n2w) 3378 | -9/Materials | Central database locked down 3378 | -9/Materials | Identified exit to Mines 3503 | -9/Materials | Entered Mines 3504 | -9/Mines | Assembled infested the area 3532 | -9/Mines | Learned Materials trap positions 3577 | -9/Mines | Core integrity fell below 50% 3609 | -9/Mines | Lost 8 parts (1p3n4w) 3637 | -9/Mines | Received a Rocket Launcher from a helpful Derelict 3767 | -9/Mines | Core integrity fell below 20% 3777 | -9/Mines | System corruption reached 10% 3807 | -9/Mines | Lost 4 parts (2u2w) 4363 | -9/Mines | Discovered exit to Materials (range 8) 4461 | -9/Mines | Entered Materials 4461 | -8/Materials | Evolved 2 slots: Propulsion x1, Utility x1 4462 | -8/Materials | Identified exit to Storage 4463 | -8/Materials | Identified exit to Factory 4464 | -8/Materials | Loaded intel: 19 trap records 5379 | -8/Materials | Lost 3 parts (1p1n1u) 5447 | -8/Materials | Identified exit to Garrison 5447 | -8/Materials | Entered Garrison 5527 | -8/Garrison | Phase Generator disabled 5635 | -8/Garrison | Triggered checkpoint 5669 | -8/Garrison | Core integrity fell below 50% 5678 | -8/Garrison | Crushed by falling debris 5709 | -8/Garrison | Lost 5 parts (1p1n2u1w) 5946 | -8/Garrison | Build established: Mutant 6844 | -8/Garrison | Build established: Scavenger-Mutant 7249 | -8/Garrison | Triggered checkpoint 7256 | -8/Garrison | Core integrity fell below 20% 7314 | -8/Garrison | Lost 7 parts (1p4n1u1w) 7426 | -8/Garrison | Learned Materials security intel 7489 | -8/Garrison | Discovered new exit (range 5) 7522 | -8/Garrison | Triggered checkpoint 7651 | -8/Garrison | Spotted B-75 Beast 7666 | -8/Garrison | Destroyed by B-75 Beast with Heavy Plasma Cannon Last Messages --------------- 07489_ EXIT=FOUND 07516_ Y-45 Defender suffers critical hit (Burn). 07519_ Imp. Ion Engine melted. 07519_ Y-45 Defender destroyed. 07519_ Switching to secondary target: Y-45 Defender. 07520_ Propulsion Shielding destroyed. 07522_ Y-45 Defender destroyed. 07528_ Acquired 37 matter. 07529_ Y7% EUV9 Z0JH